fUSD/lending_fUSD_20250514
["ID","MTS","AMOUNT","RATE_DAILY","PERIOD"]
[361057244,1747223435116,-400.0,0.00010985,2]
[361057245,1747223435125,-372.74163451,0.00010985,2]
[361057246,1747223435135,-1255.52,0.00010985,2]
[361057247,1747223435144,-787.41,0.00010985,2]
[361057248,1747223435154,-400.0,0.00010985,2]
[361057249,1747223435163,-1272.33,0.00010985,2]
[361057250,1747223435174,-729.42,0.00010985,2]
[361057251,1747223435183,-293.69,0.00010985,2]
[361057252,1747223435192,-401.32,0.00010985,2]
[361057253,1747223435203,-2562.68,0.00010985,2]
[361057254,1747223435212,-446.45,0.00010985,2]
[361057255,1747223435223,-599.42,0.00010985,2]
[361057256,1747223435233,-671.84,0.00010985,2]
[361057257,1747223435243,-916.39,0.00010985,2]
[361057258,1747223435252,-8040.92,0.00010985,2]
[361057259,1747223435262,-400.0,0.00010985,2]
[361057260,1747223435271,-869.27,0.00010985,2]
[361057261,1747223435281,-430.42,0.00010985,2]
[361057262,1747223435291,-1494.74,0.00010985,2]
[361057263,1747223435300,-3442.22,0.00010985,2]
[361057264,1747223435310,-497.91,0.00010985,2]
[361057265,1747223435319,-1099.01,0.00010985,2]
[361057266,1747223435329,-1077.36,0.00010985,2]
[361057267,1747223435339,-400.0,0.00010985,2]
[361057268,1747223435348,-400.0,0.00010985,2]
[361057269,1747223435357,-400.0,0.00010985,2]
[361057270,1747223435367,-2482.19,0.00010985,2]
[361057271,1747223435376,-400.0,0.00010985,2]
[361057272,1747223435386,-1033.36,0.00010985,2]
[361057273,1747223435395,-2349.13,0.00010985,2]
[361057274,1747223435405,-400.0,0.00010985,2]
[361057275,1747223435414,-400.0,0.00010985,2]
[361057276,1747223435424,-400.0,0.00010985,2]
[361057277,1747223435435,-400.0,0.00010985,2]
[361057278,1747223435446,-400.0,0.00010985,2]
[361057279,1747223435456,-1904.04,0.00010985,2]
[361057280,1747223435465,-400.0,0.00010985,2]
[361057281,1747223435474,-400.0,0.00010985,2]
[361057282,1747223435484,-2399.66,0.00010985,2]
[361057283,1747223435495,-1267.76,0.00010985,2]
[361057284,1747223435507,-1153.04,0.00010985,2]
[361057285,1747223435519,-400.0,0.00010985,2]
[361057286,1747223435528,-474.83,0.00010985,2]
[361057287,1747223435539,-428.65,0.00010985,2]
[361057288,1747223435551,-400.0,0.00010985,2]
[361057289,1747223435562,-400.0,0.00010985,2]
[361057290,1747223435573,-1560.97,0.00010985,2]
[361057291,1747223435583,-1624.24,0.00010985,2]
[361057292,1747223435592,-400.0,0.00010985,2]
[361057293,1747223435602,-410.41,0.00010985,2]
[361057294,1747223435613,-13143.02,0.00010985,2]
[361057295,1747223435622,-400.0,0.00010985,2]
[361057296,1747223435631,-3597.07,0.00010985,2]
[361057297,1747223435640,-2016.14,0.00010985,2]
[361057298,1747223435650,-428.53,0.00010985,2]
[361057299,1747223435660,-400.0,0.00010985,2]
[361057300,1747223435669,-1532.4,0.00010985,2]
[361057301,1747223435678,-3055.85,0.00010985,2]
[361057302,1747223435687,-400.0,0.00010985,2]
[361057303,1747223435697,-487.01,0.00010985,2]
[361057304,1747223435708,-763.23,0.00010985,2]
[361057305,1747223435717,-400.0,0.00010985,2]
[361057306,1747223435726,-1434.8,0.00010985,2]
[361057307,1747223435735,-400.0,0.00010985,2]
[361057308,1747223435745,-400.0,0.00010985,2]
[361057309,1747223435754,-400.0,0.00010985,2]
[361057310,1747223435765,-1180.25,0.00010985,2]
[361057311,1747223435775,-10293.49,0.00010985,2]
[361057312,1747223435785,-668.96,0.00010985,2]
[361057313,1747223435795,-414.32,0.00010985,2]
[361057314,1747223435804,-400.0,0.00010985,2]
[361057315,1747223435814,-1663.15,0.00010985,2]
[361057316,1747223435825,-939.36,0.00010985,2]
[361057317,1747223435841,-400.0,0.00010985,2]
[361057318,1747223435851,-400.0,0.00010985,2]
[361057319,1747223435860,-400.0,0.00010985,2]
[361057320,1747223435871,-451.34,0.00010985,2]
[361057321,1747223435882,-6446.37,0.00010985,2]
[361057322,1747223435892,-15552.5,0.00010985,2]
[361057323,1747223435906,-400.0,0.00010985,2]
[361057324,1747223435916,-1980.11,0.00010985,2]
[361057325,1747223435927,-400.0,0.00010985,2]
[361057326,1747223435937,-886.07,0.00010985,2]
[361057327,1747223435946,-516.96,0.00010985,2]
[361057328,1747223435955,-3904.68,0.00010985,2]
[361057329,1747223435965,-2420.54,0.00010985,2]
[361057330,1747223435974,-400.0,0.00010985,2]
[361057331,1747223435983,-1061.01,0.00010985,2]
[361057332,1747223435992,-400.0,0.00010985,2]
[361057333,1747223436003,-400.0,0.00010985,2]
[361057334,1747223436014,-1548.57,0.00010985,2]
[361057335,1747223436024,-400.0,0.00010985,2]
[361057336,1747223436036,-1542.88,0.00010985,2]
[361057337,1747223436046,-490.04,0.00010985,2]
[361057338,1747223436057,-4792.09,0.00010985,2]
[361057339,1747223436066,-2513.44,0.00010985,2]
[361057340,1747223436076,-400.0,0.00010985,2]
[361057341,1747223436086,-400.0,0.00010985,2]
[361057342,1747223436096,-400.0,0.00010985,2]
[361057343,1747223436107,-7451.0,0.00010985,2]
[361057344,1747223436116,-1071.07,0.00010985,2]
[361057345,1747223436126,-821.23,0.00010985,2]
[361057346,1747223436136,-400.0,0.00010985,2]
[361057347,1747223436146,-400.0,0.00010985,2]
[361057348,1747223436156,-400.0,0.00010985,2]
[361057349,1747223436167,-432.02,0.00010985,2]
[361057350,1747223436176,-2125.51,0.00010985,2]
[361057351,1747223436187,-853.4,0.00010985,2]
[361057352,1747223436198,-565.26,0.00010985,2]
[361057353,1747223436208,-903.4,0.00010985,2]
[361057354,1747223436219,-400.0,0.00010985,2]
[361057355,1747223436228,-1375.43,0.00010985,2]
[361057356,1747223436238,-157.25690928,0.00010985,2]
[361057357,1747223436249,-400.0,0.00010985,2]
[361057358,1747223436258,-739.03,0.00010985,2]
[361057359,1747223436267,-1166.52,0.00010985,2]
[361057360,1747223436277,-400.0,0.00010985,2]
[361057361,1747223436286,-1053.78,0.00010985,2]
[361057362,1747223436295,-1258.39,0.00010985,2]
[361057363,1747223436305,-1159.02,0.00010985,2]
[361057364,1747223436314,-400.0,0.00010985,2]
[361057365,1747223436324,-400.0,0.00010985,2]
[361057366,1747223436335,-500.0,0.00010985,2]
[361057367,1747223436345,-6482.19,0.00010985,2]
[361057368,1747223436354,-1741.23,0.00010985,2]
[361057369,1747223436363,-400.0,0.00010985,2]
[361057370,1747223436373,-948.85,0.00010985,2]
[361057371,1747223436382,-1181.46,0.00010985,2]
[361057372,1747223436392,-1026.93,0.00010985,2]
[361057373,1747223436402,-400.0,0.00010985,2]
[361057374,1747223436412,-1788.53,0.00010985,2]
[361057375,1747223436422,-400.0,0.00010985,2]
[361057376,1747223436431,-2145.66,0.00010985,2]
[361057377,1747223436441,-506.58,0.00010985,2]
[361057378,1747223436451,-701.84,0.00010985,2]
[361057379,1747223436460,-400.0,0.00010985,2]
[361057380,1747223436469,-3449.37,0.00010985,2]
[361057381,1747223436479,-705.87,0.00010985,2]
[361057382,1747223436488,-400.0,0.00010985,2]
[361057383,1747223436498,-400.0,0.00010985,2]
[361057384,1747223436507,-400.0,0.00010985,2]
[361057385,1747223436517,-400.0,0.00010985,2]
[361057386,1747223436526,-5343.59,0.00010985,2]
[361057387,1747223436535,-2407.43,0.00010985,2]
[361057388,1747223436544,-773.25,0.00010985,2]
[361057389,1747223436553,-571.25,0.00010985,2]
[361057390,1747223436563,-400.0,0.00010985,2]
[361057391,1747223436573,-400.0,0.00010985,2]
[361057392,1747223436582,-1779.16,0.00010985,2]
[361057393,1747223436591,-2559.14,0.00010985,2]
[361057394,1747223436601,-400.0,0.00010985,2]
[361057395,1747223436611,-8443.74,0.00010985,2]
[361057396,1747223436620,-779.67,0.00010985,2]
[361057397,1747223436630,-400.0,0.00010985,2]
[361057398,1747223436639,-400.0,0.00010985,2]
[361057399,1747223436649,-406.21,0.00010985,2]
[361057400,1747223436659,-400.0,0.00010985,2]
[361057401,1747223436670,-703.69,0.00010985,2]
[361057402,1747223436679,-400.0,0.00010985,2]
[361057403,1747223436689,-400.0,0.00010985,2]
[361057404,1747223436699,-499.9,0.00010985,2]
[361057405,1747223436709,-1000.0,0.00010985,2]
[361057406,1747223436718,-2175.47,0.00010985,2]
[361057407,1747223436728,-400.0,0.00010985,2]
[361057408,1747223436738,-21054.44,0.00010985,2]
[361057409,1747223436749,-593.86,0.00010985,2]
[361057410,1747223436759,-823.7,0.00010985,2]
[361057411,1747223436770,-400.0,0.00010985,2]
[361057412,1747223436781,-400.0,0.00010985,2]
[361057413,1747223436790,-2152.56,0.00010985,2]
[361057414,1747223436799,-400.0,0.00010985,2]
[361057415,1747223436809,-400.0,0.00010985,2]
[361057416,1747223436818,-400.0,0.00010985,2]
[361057417,1747223436829,-477.51,0.00010985,2]
[361057418,1747223436840,-884.74,0.00010985,2]
[361057419,1747223436850,-1234.65,0.00010985,2]
[361057420,1747223436861,-458.16,0.00010985,2]
[361057421,1747223436872,-1000.0,0.00010985,2]
[361057422,1747223436883,-572.9,0.00010985,2]
[361057423,1747223436892,-286.93199414,0.00010985,2]
[361057424,1747223436903,-449.87,0.00010985,2]
[361057425,1747223436914,-533.7,0.00010985,2]
[361057426,1747223436926,-400.0,0.00010985,2]
[361057427,1747223436935,-1469.94,0.00010985,2]
[361057428,1747223436945,-536.78,0.00010985,2]
[361057429,1747223436956,-764.98,0.00010985,2]
[361057430,1747223436966,-400.0,0.00010985,2]
[361057431,1747223436975,-640.35,0.00010985,2]
[361057432,1747223436985,-400.0,0.00010986,2]
[361057433,1747223436995,-326.23158436,0.00010986,2]
[361057434,1747223437005,-400.0,0.00010986,2]
[361057435,1747223437015,-400.0,0.00010986,2]
[361057436,1747223437025,-400.0,0.00010986,2]
[361057437,1747223437034,-445.64,0.00010986,2]
[361057438,1747223437044,-528.52,0.00010986,2]
[361057439,1747223437054,-400.0,0.00010986,2]
[361057440,1747223437064,-400.0,0.00010986,2]
[361057441,1747223437074,-704.43,0.00010986,2]
[361057442,1747223437084,-400.0,0.00010986,2]
[361057443,1747223437094,-400.0,0.00010986,2]
[361057444,1747223437104,-400.0,0.00010986,2]
[361057445,1747223437114,-400.0,0.00010986,2]
[361057446,1747223437124,-759.59,0.00010986,2]
[361057447,1747223437133,-400.0,0.00010986,2]
[361057448,1747223437143,-400.0,0.00010986,2]
[361057449,1747223437152,-400.0,0.00010986,2]
[361057450,1747223437162,-400.0,0.00010986,2]
[361057451,1747223437172,-400.0,0.00010986,2]
[361057452,1747223437182,-400.0,0.00010986,2]
[361057453,1747223437191,-400.0,0.00010986,2]
[361057454,1747223437201,-969.95,0.00010986,2]
[361057455,1747223437211,-400.0,0.00010986,2]
[361057456,1747223437220,-400.0,0.00010986,2]
[361057457,1747223437230,-400.0,0.00010986,2]
[361057458,1747223437239,-400.0,0.00010986,2]
[361057459,1747223437250,-400.0,0.00010986,2]
[361057460,1747223437260,-400.0,0.00010986,2]
[361057461,1747223437271,-400.0,0.00010986,2]
[361057462,1747223437280,-400.0,0.00010986,2]
[361057463,1747223437290,-404.58116347,0.00010986,2]
[361057464,1747223437300,-400.0,0.00010986,2]
[361057465,1747223437310,-461.22,0.00010986,2]
[361057466,1747223437321,-400.0,0.00010986,2]
[361057467,1747223437331,-400.0,0.00010986,2]
[361057468,1747223437341,-400.0,0.00010986,2]
[361057469,1747223437350,-400.0,0.00010986,2]
[361057470,1747223437359,-400.0,0.00010986,2]
[361057471,1747223437369,-400.0,0.00010986,2]
[361057472,1747223437379,-400.0,0.00010986,2]
[361057473,1747223437388,-400.0,0.00010986,2]
[361057474,1747223437401,-400.0,0.00010986,2]
[361057475,1747223437411,-400.0,0.00010986,2]
[361057476,1747223437420,-502.58,0.00010986,2]
[361057477,1747223437431,-402.02804778,0.00010986,2]
[361057478,1747223437440,-465.57,0.00010986,2]
[361057479,1747223437451,-400.0,0.00010986,2]
[361057480,1747223437461,-400.0,0.00010986,2]
[361057481,1747223437470,-400.0,0.00010986,2]
[361057482,1747223437480,-400.0,0.00010986,2]
[361057483,1747223437490,-485.09,0.00010986,2]
[361057484,1747223437500,-401.14856017,0.00010986,2]
[361057485,1747223437510,-400.0,0.00010986,2]
[361057486,1747223437519,-400.0,0.00010986,2]
[361057487,1747223437529,-400.0,0.00010986,2]
[361057488,1747223437539,-400.0,0.00010986,2]
[361057489,1747223437549,-400.0,0.00010986,2]
[361057490,1747223437558,-400.0,0.00010986,2]
[361057491,1747223437568,-400.0,0.00010986,2]
[361057492,1747223437577,-500.0,0.00010986,2]
[361057493,1747223437586,-494.70867889,0.00010986,2]
[361057494,1747223437595,-400.0,0.00010986,2]
[361057495,1747223437603,-400.0,0.00010986,2]
[361057496,1747223437613,-400.0,0.00010986,2]
[361057497,1747223437622,-403.29327867,0.00010986,2]
[361057498,1747223437637,-718.19,0.00010986,2]
[361057499,1747223437647,-400.0,0.00010986,2]
[361057500,1747223437657,-400.0,0.00010986,2]
[361057501,1747223437667,-400.0,0.00010986,2]
[361057502,1747223437676,-459.91,0.00010986,2]
[361057503,1747223437686,-400.0,0.00010986,2]
[361057504,1747223437696,-400.0,0.00010986,2]
[361057505,1747223437705,-400.0,0.00010986,2]
[361057506,1747223437714,-400.0,0.00010986,2]
[361057507,1747223437724,-400.0,0.00010986,2]
[361057508,1747223437734,-422.85,0.00010986,2]
[361057509,1747223437744,-400.0,0.00010986,2]
[361057510,1747223437756,-400.0,0.00010986,2]
[361057511,1747223437766,-402.01572722,0.00010986,2]
[361057512,1747223437776,-400.0,0.00010986,2]
[361057513,1747223437786,-400.0,0.00010986,2]
[361057514,1747223437796,-400.0,0.00010986,2]
[361057515,1747223437806,-400.0,0.00010986,2]
[361057516,1747223437816,-400.0,0.00010986,2]
[361057517,1747223437827,-407.43137977,0.00010986,2]
[361057518,1747223437844,-402.47012582,0.00010986,2]
[361057519,1747223437854,-580.21,0.00010986,2]
[361057520,1747223437863,-400.0,0.00010986,2]
[361057521,1747223437874,-615.51,0.00010986,2]
[361057522,1747223437885,-395.24488693,0.00010986,2]
[361057523,1747223437896,-400.0,0.00010986,2]
[361057524,1747223437907,-400.0,0.00010986,2]
[361057525,1747223437916,-400.0,0.00010986,2]
[361057526,1747223437927,-400.0,0.00010986,2]
[361057527,1747223437938,-400.0,0.00010986,2]
[361057528,1747223437948,-400.0,0.00010986,2]
[361057529,1747223437958,-400.0,0.00010986,2]
[361057530,1747223437968,-400.0,0.00010986,2]
[361057531,1747223437978,-400.0,0.00010986,2]
[361057532,1747223437988,-400.0,0.00010986,2]
[361057533,1747223438000,-505.91,0.00010986,2]
[361057534,1747223438010,-400.0,0.00010986,2]
[361057535,1747223438020,-400.0,0.00010986,2]
[361057536,1747223438030,-400.0,0.00010986,2]
[361057537,1747223438040,-400.0,0.00010986,2]
[361057538,1747223438050,-1154.41,0.00010986,2]
[361057539,1747223438060,-400.0,0.00010986,2]
[361057540,1747223438070,-400.0,0.00010986,2]
[361057541,1747223438080,-678.82,0.00010986,2]
[361057542,1747223438090,-400.0,0.00010986,2]
[361057543,1747223438099,-400.0,0.00010986,2]
[361057544,1747223438110,-1309.12,0.00010986,2]
[361057548,1747223438120,-400.0,0.00010986,2]
[361057549,1747223438336,-400.0,0.00010986,2]
[361057550,1747223438346,-400.0,0.00010986,2]
[361057551,1747223438356,-1350.8,0.00010986,2]
[361057552,1747223438366,-656.29,0.00010986,2]
[361057553,1747223438376,-400.0,0.00010986,2]
[361057554,1747223438386,-400.0,0.00010986,2]
[361057555,1747223438396,-400.0,0.00010986,2]
[361057556,1747223438406,-400.0,0.00010986,2]
[361057557,1747223438416,-400.0,0.00010986,2]
[361057558,1747223438425,-400.0,0.00010986,2]
[361057559,1747223438435,-1211.42,0.00010986,2]
[361057560,1747223438444,-400.0,0.00010986,2]
[361057561,1747223438454,-400.0,0.00010986,2]
[361057562,1747223438463,-722.74,0.00010986,2]
[361057563,1747223438473,-457.14,0.00010986,2]
[361057564,1747223438483,-400.0,0.00010986,2]
[361057565,1747223438495,-400.0,0.00010986,2]
[361057566,1747223438506,-944.56,0.00010986,2]
[361057567,1747223438517,-400.0,0.00010986,2]
[361057568,1747223438527,-400.0,0.00010986,2]
[361057570,1747223438536,-437.57,0.00010986,2]
[361057571,1747223438547,-400.0,0.00010986,2]
[361057572,1747223438558,-400.0,0.00010986,2]
[361057573,1747223438568,-400.0,0.00010986,2]
[361057574,1747223438578,-400.0,0.00010986,2]
[361057575,1747223438588,-462.64,0.00010986,2]
[361057576,1747223438597,-400.0,0.00010986,2]
[361057577,1747223438608,-400.0,0.00010986,2]
[361057578,1747223438618,-409.16,0.00010986,2]
[361057579,1747223438628,-765.37,0.00010986,2]
[361057580,1747223438639,-400.0,0.00010986,2]
[361057582,1747223438648,-505.89,0.00010986,2]
[361057584,1747223438659,-400.0,0.00010986,2]
[361057585,1747223438668,-242.57,0.00010986,2]
[361057586,1747223438678,-2153.64,0.00010986,2]
[361057587,1747223438687,-335.96258904,0.00010986,2]
[361057588,1747223439897,-400.0,0.00010984,2]
[361057589,1747223439908,-542.75,0.00010984,2]
[361057590,1747223439918,-64.03741096,0.00010986,2]
[361057591,1747223439927,-400.0,0.00010986,2]
[361057592,1747223439936,-400.0,0.00010986,2]
[361057593,1747223439945,-400.0,0.00010986,2]
[361057594,1747223439955,-400.0,0.00010986,2]
[361057595,1747223439966,-402.50156956,0.00010986,2]
[361057596,1747223439976,-452.06431888,0.00010986,2]
[361057597,1747223439987,-1639.42568112,0.00010986,2]
[361057598,1747223439998,-800.93,0.00010986,2]
[361057599,1747223440008,-400.0,0.00010986,2]
[361057600,1747223440018,-400.0,0.00010986,2]
[361057601,1747223440027,-989.55,0.00010986,2]
[361057602,1747223440036,-507.59,0.00010986,2]
[361057603,1747223440045,-400.0,0.00010986,2]
[361057604,1747223440055,-400.0,0.00010986,2]
[361057605,1747223440064,-400.0,0.00010986,2]
[361057606,1747223440073,-400.0,0.00010986,2]
[361057607,1747223440083,-397.51213601,0.00010986,2]
[361057608,1747223440092,-400.0,0.00010986,2]
[361057609,1747223440102,-536.04135594,0.00010986,2]
[361057611,1747223440111,-358.0,0.00010986,2]
[361057613,1747223440121,-400.0,0.00010986,2]
[361057614,1747223440130,-922.11,0.00010986,2]
[361057615,1747223440140,-400.0,0.00010986,2]
[361057616,1747223440149,-400.0,0.00010986,2]
[361057617,1747223440159,-400.0,0.00010986,2]
[361057618,1747223440168,-472.74,0.00010986,2]
[361057619,1747223440178,-400.0,0.00010986,2]
[361057620,1747223440187,-633.44,0.00010986,2]
[361057621,1747223440197,-400.0,0.00010986,2]
[361057622,1747223440206,-465.18,0.00010986,2]
[361057623,1747223440216,-586.48,0.00010986,2]
[361057624,1747223440226,-400.0,0.00010986,2]
[361057625,1747223440235,-400.0,0.00010986,2]
[361057626,1747223440245,-400.0,0.00010986,2]
[361057627,1747223440255,-400.0,0.00010986,2]
[361057628,1747223440265,-245.97797658,0.00010986,2]
[361057629,1747223440274,-400.0,0.00010986,2]
[361057630,1747223440284,-656.45,0.00010986,2]
[361057631,1747223440294,-400.0,0.00010986,2]
[361057632,1747223440303,-723.77,0.00010986,2]
[361057633,1747223440313,-400.0,0.00010986,2]
[361057634,1747223440322,-400.0,0.00010986,2]
[361057635,1747223440332,-400.0,0.00010986,2]
[361057636,1747223440341,-169.27825603,0.00010986,2]
[361057637,1747223440354,-230.72174397,0.00010986,2]
[361057638,1747223440363,-400.0,0.00010986,2]
[361057639,1747223440372,-400.0,0.00010986,2]
[361057640,1747223440381,-275.06984523,0.00010986,2]
[361057641,1747223440392,-221.42993967,0.00010986,2]
[361057642,1747223440401,-802.07,0.00010986,2]
[361057643,1747223440411,-400.0,0.00010986,2]
[361057644,1747223440420,-340.73386214,0.00010986,2]
[361057645,1747223440430,-400.0,0.00010986,2]
[361057646,1747223440439,-400.0,0.00010986,2]
[361057647,1747223440449,-6.31620219,0.00010986,2]
[361057648,1747223440952,-393.68379781,0.00010986,2]
[361057649,1747223440962,-400.0,0.00010986,2]
[361057650,1747223440971,-1206.65,0.00010986,2]
[361057651,1747223440981,-400.0,0.00010986,2]
[361057652,1747223440990,-400.0,0.00010986,2]
[361057653,1747223441000,-400.0,0.00010986,2]
[361057655,1747223441010,-1672.85,0.00010986,2]
[361057657,1747223441020,-526.41,0.00010986,2]
[361057658,1747223441031,-491.84,0.00010986,2]
[361057659,1747223441041,-400.0,0.00010986,2]
[361057660,1747223441050,-400.00102525,0.00010986,2]
[361057661,1747223441060,-400.0,0.00010986,2]
[361057662,1747223441071,-400.0,0.00010986,2]
[361057663,1747223441080,-471.27,0.00010986,2]
[361057664,1747223441090,-400.0,0.00010986,2]
[361057665,1747223441101,-400.0,0.00010986,2]
[361057666,1747223441110,-400.0,0.00010986,2]
[361057667,1747223441120,-400.0,0.00010986,2]
[361057668,1747223441130,-963.81,0.00010986,2]
[361057669,1747223441140,-400.0,0.00010986,2]
[361057670,1747223441150,-407.01879712,0.00010986,2]
[361057671,1747223441159,-1794.0,0.00010986,2]
[361057672,1747223441169,-581.33,0.00010986,2]
[361057673,1747223441180,-698.4,0.00010986,2]
[361057674,1747223441189,-422.63769423,0.00010986,2]
[361057675,1747223441199,-539.59,0.00010986,2]
[361057676,1747223441208,-400.0,0.00010986,2]
[361057677,1747223441217,-400.0,0.00010986,2]
[361057678,1747223441227,-400.0,0.00010986,2]
[361057679,1747223441236,-907.9,0.00010986,2]
[361057680,1747223441246,-282.4942183,0.00010986,2]
[361057681,1747223441261,-400.0,0.00010986,2]
[361057682,1747223441271,-190.08696304,0.00010986,2]
[361057683,1747223441281,-2176.91,0.00010986,2]
[361057684,1747223441289,-520.52,0.00010986,2]
[361057685,1747223441299,-400.0,0.00010986,2]
[361057686,1747223441309,-606.9,0.00010986,2]
[361057687,1747223441318,-405.83,0.00010986,2]
[361057688,1747223441328,-400.0,0.00010986,2]
[361057689,1747223441338,-400.0,0.00010986,2]
[361057690,1747223441348,-400.0,0.00010986,2]
[361057691,1747223441357,-1085.91,0.00010986,2]
[361057692,1747223441368,-400.0,0.00010986,2]
[361057693,1747223441378,-1082.54,0.00010986,2]
[361057694,1747223441388,-400.0,0.00010986,2]
[361057695,1747223441398,-400.0,0.00010986,2]
[361057696,1747223441408,-400.0,0.00010986,2]
[361057697,1747223441418,-400.0,0.00010986,2]
[361057698,1747223441430,-792.42,0.00010986,2]
[361057699,1747223441440,-400.0,0.00010986,2]
[361057700,1747223441450,-204.20824551,0.00010986,2]
[361057701,1747223441459,-575.23,0.00010986,2]
[361057702,1747223441469,-400.0,0.00010986,2]
[361057703,1747223441480,-467.7,0.00010986,2]
[361057704,1747223441491,-2852.55,0.00010986,2]
[361057705,1747223441501,-400.0,0.00010986,2]
[361057706,1747223441511,-1215.5,0.00010986,2]
[361057707,1747223441521,-400.0,0.00010986,2]
[361057708,1747223441530,-400.0,0.00010986,2]
[361057709,1747223441540,-400.0,0.00010986,2]
[361057710,1747223441550,-400.0,0.00010986,2]
[361057711,1747223441559,-1051.08,0.00010986,2]
[361057712,1747223441570,-616.85,0.00010986,2]
[361057713,1747223441579,-400.0,0.00010986,2]
[361057714,1747223441589,-457.0,0.00010986,2]
[361057715,1747223441599,-400.0,0.00010986,2]
[361057716,1747223441608,-155.4402479,0.00010986,2]
[361057717,1747223441618,-400.0,0.00010986,2]
[361057718,1747223441627,-782.54,0.00010986,2]
[361057719,1747223441638,-400.0,0.00010986,2]
[361057720,1747223441647,-400.0,0.00010986,2]
[361057721,1747223441657,-970.47,0.00010986,2]
[361057722,1747223441667,-943.44,0.00010986,2]
[361057723,1747223441677,-400.0,0.00010986,2]
[361057724,1747223441686,-400.0,0.00010986,2]
[361057725,1747223441696,-416.76,0.00010986,2]
[361057726,1747223441706,-400.0,0.00010986,2]
[361057727,1747223441715,-692.07,0.00010986,2]
[361057728,1747223441725,-400.0,0.00010986,2]
[361057729,1747223441734,-400.0,0.00010986,2]
[361057730,1747223441744,-400.0,0.00010986,2]
[361057731,1747223441754,-400.0,0.00010986,2]
[361057732,1747223441764,-907.73,0.00010986,2]
[361057733,1747223441773,-400.0,0.00010986,2]
[361057734,1747223441782,-400.0,0.00010986,2]
[361057735,1747223441793,-875.71,0.00010986,2]
[361057736,1747223441803,-400.0,0.00010986,2]
[361057737,1747223441813,-1066.52,0.00010986,2]
[361057738,1747223441823,-400.0,0.00010986,2]
[361057739,1747223441838,-400.0,0.00010986,2]
[361057740,1747223441849,-1986.06,0.00010986,2]
[361057741,1747223441859,-873.9,0.00010986,2]
[361057742,1747223441871,-400.0,0.00010986,2]
[361057743,1747223441881,-400.0,0.00010986,2]
[361057744,1747223441891,-955.66,0.00010986,2]
[361057745,1747223441901,-214.14646298,0.00010986,2]
[361057746,1747223441911,-400.0,0.00010986,2]
[361057747,1747223441921,-400.0,0.00010986,2]
[361057748,1747223441931,-400.0,0.00010986,2]
[361057749,1747223441940,-400.0,0.00010986,2]
[361057750,1747223441950,-468.39,0.00010986,2]
[361057751,1747223441960,-400.0,0.00010986,2]
[361057752,1747223441969,-400.0,0.00010986,2]
[361057753,1747223441980,-880.66,0.00010986,2]